[Event "FIDE WSTC-50-65 2022"]
[Site "Acqui Terme"]
[Date "2022.06.23"]
[Round "4.2"]
[White "Shabalov, Alexander"]
[Black "Short, Nigel D"]
[Result "1/2-1/2"]
[ECO "C96"]
[WhiteElo "2504"]
[BlackElo "2622"]
[Annotator "TA"]
[PlyCount "140"]
[EventDate "2022.06.20"]
[EventType "team-tourn"]
[EventCountry "ITA"]
[SourceTitle "playchess.com"]
[Source "ChessBase"]
[SourceQuality "1"]
[TimeControl "40/5400+30:1800+30"]

{[%evp 32,140,14,6,6,14,6,13,29,22,32,0,7,0,-2,0,0,0,0,-8,0,0,2,6,15,0,0,0,0,0,0,0,0,0,0,0,0,0,0,0,0,0,0,0,0,0,0,0,0,0,0,0,0,0,0,0,0,0,0,0,0,0,0,0,0,0,0,0,0,0,0,0,0,0,0,0,0,0,0,0,0,0,0,0,0,0,0,0,0,0,0,0,0,0,0,0,0,0,0,0,0,0,0,-8,-8,-8,-8,-8,-8,-8,-8]} 1. e4 {[%emt 0:01:00]} e5 {[%emt 0:01:00]} 2. Nf3 {[%emt 0:00:00]} Nc6 {[%emt 0:00:00]} 3. Bb5 {[%emt 0:00:00]} a6 {[%emt 0:00:00]} 4. Ba4 {[%emt 0:00:00]} Nf6 {[%emt 0:00:30]} 5. O-O {[%emt 0:00:00]} Be7 {[%emt 0:00:30]} 6. Re1 {[%emt 0:00:30]} b5 {[%emt 0:00:00]} 7. Bb3 {[%emt 0:00:00]} d6 {[%emt 0:00:00]} 8. c3 {[%emt 0:00:00]} O-O {[%emt 0:00:30]} 9. h3 {[%emt 0:00:30]} Na5 {[%emt 0:00:30]} 10. Bc2 {[%emt 0:00:00]} c5 {[%emt 0:00:30]} 11. d4 {[%emt 0:00:00]} Nd7 {[%emt 0:00:00]} 12. Nbd2 {[%emt 0:00:30]} cxd4 {[%emt 0:00:00]} 13. cxd4 {[%emt 0:00:00]} Nc6 {[%emt 0:00:30]} 14. Nb3 {[%emt 0:08:00]} a5 {[%emt 0:00:30][%cal Ba6a5,Ba5a4][%mdl 32]} 15. Be3 {[%emt 0:00:00]} a4 {[%emt 0:00:00]} 16. Nbd2 {[%emt 0:00:00]} exd4 {[%emt 0:01:00]} 17. Nxd4 {[%emt 0:00:00]} Nxd4 {[%emt 0:00:00] C96: Closed Ruy Lopez: Chigorin Defence: 11 d4, replies other than 11...Qc7.} 18. Bxd4 {[%emt 0:00:00]} Ne5 {[%emt 0:00:00]} 19. Qe2 {[%emt 0:16:30] [#]} Nc6 $146 {[%emt 0:12:30]} ({Predecessor:} 19... b4 20. Rad1 Be6 21. Bb1 Bg5 22. Rf1 Qf6 23. f4 Bxf4 24. Qf2 Bg5 25. Qxf6 Bxf6 {0-1 (35) Robson,R (2389)-Yermolinsky,A (2522) Tulsa 2008}) 20. Be3 {[%emt 0:00:30]} Bf6 {[%emt 0:06:30]} 21. Qxb5 {[%emt 0:05:30]} Bd7 {[%emt 0:03:30] [#] Threatens to win with ...Nd4. The position is equal.} 22. Rac1 {[%emt 0:17:30]} ({Don't blunder} 22. Bxa4 $2 Ne5 23. Qe2 Bxa4 $19) 22... Rb8 $1 {[%emt 0:01:30]} 23. Qe2 {[%emt 0:00:00]} ({Reject} 23. Qxa4 Bxb2 24. Bb1 Ne5 $17) 23... Bxb2 {[%emt 0:01:30]} 24. Rcd1 {[%emt 0:00:00]} Ne5 {[%emt 0:07:30]} 25. f4 {[%emt 0:12:30]} Bb5 {[%emt 0:00:30]} 26. Qf2 {[%emt 0:00:30]} Nd3 {[%emt 0:02:30]} 27. Bxd3 {[%emt 0:00:30]} Bxd3 {[%emt 0:00:00]} 28. e5 {[%emt 0:17:30]} dxe5 {[%emt 0:09:00]} 29. Nc4 {[%emt 0:03:41]} Bxc4 {[%emt 0:00:30]} 30. Rxd8 {[%emt 0:00:19]} Rfxd8 {[%emt 0:00:30]} 31. Qc2 {[%emt 0:01:31]} Bxa2 {[%emt 0:05:30] A strong pair of Bishops.} 32. Qxa4 {[%emt 0:00:59]} Bb3 {[%emt 0:00:30]} 33. Qa6 {[%emt 0:03:53]} exf4 {[%emt 0:02:30]} 34. Bxf4 {[%emt 0:02:26]} Bd4+ {[%emt 0:00:30]} 35. Kh1 {[%emt 0:01:39]} Ra8 {[%emt 0:02:30]} 36. Qb5 {[%emt 0:02:28]} Be6 {[%emt 0:01:30]} 37. Rd1 {[%emt 0:06:06]} h6 {[%emt 0:09:30]} 38. Be5 {[%emt 0:02:50]} Bxe5 {[%emt 0:03:30]} 39. Rxd8+ {[%emt 0:00:06]} Rxd8 {[%emt 0:00:30]} 40. Qxe5 $11 {[%emt 0:00:00][%mdl 4096] Endgame KQ-KRB} Rc8 {[%emt 0:00:00]} 41. Qd4 {[%emt 0:02:32]} Bf5 {[%emt 0:05:00]} 42. g4 {[%emt 0:01:30]} Be6 {[%emt 0:01:30]} 43. Kh2 {[%emt 0:00:30]} Rb8 {[%emt 0:01:30]} 44. Kg2 {[%emt 0:06:30]} Rb3 {[%emt 0:01:30]} 45. Qe4 {[%emt 0:00:30]} Ra3 {[%emt 0:03:30]} 46. Qe5 {[%emt 0:01:30]} Rb3 {[%emt 0:00:30]} 47. Qe4 {[%emt 0:00:00]} Rb5 {[%emt 0:01:30]} 48. Qa8+ {[%emt 0:05:32]} Kh7 {[%emt 0:00:00]} 49. Qe4+ {[%emt 0:00:27]} g6 {[%emt 0:00:00]} 50. Qa4 {[%emt 0:01:02]} Rd5 {[%emt 0:00:30]} 51. Qb4 {[%emt 0:01:01]} h5 {[%emt 0:00:30]} 52. gxh5 {[%emt 0:00:29]} Rg5+ {[%emt 0:00:30]} 53. Kf2 {[%emt 0:00:28]} Rxh5 {[%emt 0:00:30]} 54. h4 {[%emt 0:00:09]} Rf5+ {[%emt 0:00:30]} 55. Kg3 {[%emt 0:00:36]} Re5 {[%emt 0:03:30]} 56. Kf4 {[%emt 0:01:18]} Rd5 {[%emt 0:01:30]} 57. Kg3 {[%emt 0:00:49]} Rd3+ {[%emt 0:03:30]} 58. Kg2 {[%emt 0:00:41]} Rd8 {[%emt 0:03:30]} 59. Kg3 {[%emt 0:01:04]} Rc8 {[%emt 0:00:30]} 60. Qd4 {[%emt 0:01:09]} Rc4 {[%emt 0:01:30]} 61. Qf6 {[%emt 0:00:15]} Rg4+ {[%emt 0:00:30]} 62. Kf2 $1 {[%emt 0:00:44]} Rb4 {[%emt 0:00:00]} 63. Qg5 {[%emt 0:01:28]} Rg4 {[%emt 0:03:00]} 64. Qf6 {[%emt 0:00:08]} Kg8 {[%emt 0:01:30]} 65. Kf1 {[%emt 0:01:11]} Rg3 {[%emt 0:01:30]} 66. Kf2 {[%emt 0:00:23]} Rd3 {[%emt 0:00:30] Prevents Qd8+.} 67. h5 {[%emt 0:00:36] [#] h6 is the strong threat.} Rd5 {[%emt 0:01:30] ( -> ...Rf5+)} 68. hxg6 {[%emt 0:00:09]} Rf5+ {[%emt 0:00:00]} 69. Qxf5 $1 {[%emt 0:00:03]} Bxf5 {[%emt 0:00:00]} 70. gxf7+ {[%emt 0:00:02]} Kxf7 {[%emt 0:00:30] An interesting draw.  Weighted Error Value: White=0.01 (flawless) /Black=0.01 (flawless)} 1/2-1/2

[Event "FIDE WSTC-50-65 2022"]
[Site "Acqui Terme"]
[Date "2022.06.23"]
[Round "4.3"]
[White "Hebden, Mark L"]
[Black "Novikov, Igor"]
[Result "0-1"]
[ECO "D30"]
[WhiteElo "2452"]
[BlackElo "2551"]
[Annotator "TA"]
[PlyCount "91"]
[EventDate "2022.06.20"]
[EventType "team-tourn"]
[EventCountry "ITA"]
[SourceTitle "playchess.com"]
[Source "ChessBase"]
[SourceQuality "1"]
[TimeControl "40/5400+30:1800+30"]

{[%evp 12,91,20,11,29,12,22,2,31,23,22,27,44,8,20,26,37,12,23,4,11,13,37,38,38,-17,-25,-31,-19,-31,-27,-56,-43,-47,-38,-43,-38,-56,-47,-43,-30,-104,-107,-153,-156,-156,-156,-160,-171,-158,-152,-157,-157,-151,-150,-143,-148,-183,-178,-172,-179,-189,-159,-166,-157,-195,-195,-266,-264,-410,-397,-387,-355,-406,-383,-509,-509,-508,-448,-450,-312,-689]} 1. d4 {[%emt 0:01:00]} d5 {[%emt 0:01:00]} 2. Nf3 {[%emt 0:00:30]} Nf6 {[%emt 0:00:00]} 3. c4 {[%emt 0:00:30]} e6 {[%emt 0:00:00]} 4. e3 {[%emt 0:01:30]} c5 {[%emt 0:04:30]} 5. cxd5 {[%emt 0:01:30]} exd5 {[%emt 0:00:30]} 6. Bb5+ {[%emt 0:00:30]} Nc6 {[%emt 0:03:30]} 7. O-O {[%emt 0:01:30]} Bd6 {[%emt 0:01:30] 7...cxd4 gains popularity. D30: Queen's Gambit Declined: Systems without Nc3.} 8. Qc2 {[%emt 0:01:30]} Qb6 $1 {[%emt 0:01:30]} 9. dxc5 {[%emt 0:02:30]} (9. Bxc6+ $5 bxc6 10. b3 $15) 9... Bxc5 {[%emt 0:01:30] The position is equal.} (9... Bxh2+ $5 10. Nxh2 Qxb5 $11) 10. Bxc6+ {[%emt 0:20:30]} bxc6 {[%emt 0:04:30]} 11. Nc3 {[%emt 0:06:30] [#] Black must now prevent Na4.} Be7 $5 $146 {[%emt 0:02:30][%mdl 8] An interesting novelty.} ({Predecessor:} 11... Qc7 12. e4 O-O 13. exd5 cxd5 14. Bg5 Be7 15. Rac1 Qb7 16. Rfe1 h6 17. Bh4 Bd8 {½-½ (35) Rost,D (2451)-Babic,D (2463) ICCF email 2016}) 12. e4 {[%emt 0:02:30]} dxe4 {[%emt 0:17:30]} 13. Nxe4 {[%emt 0:07:30]} O-O {[%emt 0:12:30]} 14. Bg5 {[%emt 0:00:30]} c5 {[%emt 0:05:30]} 15. Rfe1 {[%emt 0:08:30]} Bb7 {[%emt 0:08:30]} 16. Nfd2 {[%emt 0:10:30]} Rac8 {[%emt 0:05:30]} 17. Nc4 {[%emt 0:05:30]} Qa6 {[%emt 0:01:30] [#]} 18. Ng3 {[%emt 0:11:55] Pair of Knights!} ({White should try} 18. Rad1 $1 $14) 18... Rfe8 $11 {[%emt 0:01:30]} 19. b3 {[%emt 0:01:04]} Bf8 {[%emt 0:02:30]} 20. Rad1 {[%emt 0:05:49]} Nd5 {[%emt 0:02:30]} 21. a3 {[%emt 0:00:22]} Nb6 {[%emt 0:05:24]} 22. Be3 {[%emt 0:01:16]} Nxc4 {[%emt 0:02:05]} 23. bxc4 {[%emt 0:01:30]} Re6 {[%emt 0:01:58]} (23... Qxa3 $2 24. Ra1 Qb4 25. Reb1 $18) 24. Bc1 {[%emt 0:01:31]} Rce8 {[%emt 0:01:25]} 25. Rxe6 {[%emt 0:00:14]} Qxe6 {[%emt 0:00:20]} 26. f3 {[%emt 0:04:37]} (26. Bf4 $11 {remains equal.}) 26... Ba6 $17 {[%emt 0:01:54][%cal Bb7a6,Ba6c4,Bc4d3][%mdl 32] Black converts the advantage convincingly.} 27. Bd2 {[%emt 0:01:24]} (27. Ne4 $142) 27... Qxc4 {[%emt 0:01:05]} (27... Bxc4 $2 28. Re1 $18) 28. Qxc4 {[%emt 0:00:09]} Bxc4 {[%emt 0:00:05]} 29. Ne4 {[%emt 0:00:23]} Bd3 {[%emt 0:01:01]} 30. Nf2 {[%emt 0:00:24]} Bg6 {[%emt 0:01:06] Black is more active.} 31. Kf1 {[%emt 0:00:38]} f6 {[%emt 0:00:50]} 32. Rc1 {[%emt 0:00:26]} Re6 {[%emt 0:01:32]} 33. Rc3 {[%emt 0:00:06]} a6 {[%emt 0:02:08]} 34. Be3 {[%emt 0:00:04]} Rc6 {[%emt 0:00:05]} 35. Ne4 {[%emt 0:00:12][%cal Re4c5]} c4 {[%emt 0:01:52]} 36. Ke2 {[%emt 0:00:02]} Bf7 {[%emt 0:00:31]} 37. g4 {[%emt 0:00:26]} Bd5 {[%emt 0:00:20]} 38. Bc1 {[%emt 0:00:59]} Re6 {[%emt 0:00:58]} 39. Re3 {[%emt 0:00:11]} (39. Be3 $142) 39... Bxe4 $19 {[%emt 0:02:01]} 40. Rxe4 {[%emt 0:00:00]} (40. fxe4 $142 Bd6 41. h3) 40... Rxe4+ {[%emt 0:00:00]} 41. fxe4 {[%emt 0:01:18] KB-KB} Bd6 {[%emt 0:01:50]} 42. h4 {[%emt 0:00:30]} Kf7 {[%emt 0:01:30]} 43. h5 {[%emt 0:00:00]} Ke6 {[%emt 0:02:30]} 44. Bb2 {[%emt 0:03:00]} Be5 {[%emt 0:01:30]} 45. Bc1 {[%emt 0:00:00]} Kd6 {[%emt 0:01:30]} 46. h6 $2 {[%emt 0:06:00] Weighted Error Value: White=0.26 (precise) /Black=0.12 (very precise)} (46. Kd1) 0-1

[Event "FIDE WSTC-50-65 2022"]
[Site "Acqui Terme"]
[Date "2022.06.23"]
[Round "4.4"]
[White "Ehlvest, Jaan"]
[Black "Emms, John M"]
[Result "1/2-1/2"]
[ECO "B38"]
[WhiteElo "2517"]
[BlackElo "2478"]
[Annotator "TA"]
[PlyCount "53"]
[EventDate "2022.06.20"]
[EventType "team-tourn"]
[EventCountry "ITA"]
[SourceTitle "playchess.com"]
[Source "ChessBase"]
[SourceQuality "1"]
[TimeControl "40/5400+30:1800+30"]

{[%evp 21,53,28,32,30,40,27,47,32,54,45,52,52,38,46,43,47,83,49,49,50,50,43,54,52,49,52,88,52,65,0,96,0,85,0]} 1. e4 {[%emt 0:01:00]} c5 {[%emt 0:01:00]} 2. Nf3 {[%emt 0:00:00]} Nc6 {[%emt 0:00:30]} 3. d4 {[%emt 0:00:00]} cxd4 {[%emt 0:00:00]} 4. Nxd4 {[%emt 0:00:00]} g6 {[%emt 0:00:00]} 5. c4 {[%emt 0:00:00]} Nf6 {[%emt 0:00:30]} 6. Nc3 {[%emt 0:00:00]} d6 {[%emt 0:00:30]} 7. f3 {[%emt 0:00:00]} Bg7 {[%emt 0:01:30]} 8. Be3 {[%emt 0:00:30]} O-O {[%emt 0:00:30]} 9. Qd2 {[%emt 0:00:30]} Nxd4 {[%emt 0:01:30]} 10. Bxd4 {[%emt 0:00:30]} Qa5 {[%emt 0:00:30]} 11. Be2 {[%emt 0:04:30]} Be6 {[%emt 0:00:30]} 12. b3 {[%emt 0:01:30] B38: Sicilian: Maroczy Bind with 5...Bg7 and 7...0-0.} Rfc8 {[%emt 0:10:30][%cal Ob7b5]} 13. Rb1 {[%emt 0:16:30]} a6 {[%emt 0:00:00][%cal Ob7b5]} 14. O-O {[%emt 0:14:30] White is slightly better.} Rab8 {[%emt 0:14:00]} 15. Rfd1 {[%emt 0:06:30]} Nd7 {[%emt 0:13:30]} 16. Bxg7 $1 {[%emt 0:19:30]} Kxg7 {[%emt 0:00:30] [#]} 17. a4 $146 {[%emt 0:08:30] Prevents b5.} ({Predecessor:} 17. f4 f6 18. a4 Qb4 19. Kh1 Nc5 20. Qb2 Nd7 21. Bf3 Qc5 22. Re1 h6 23. Rbd1 {½-½ (61) Amanov,Z (2366)-Debashish,D (2077) New Delhi 2008}) 17... Nf6 {[%emt 0:16:30]} 18. Kh1 {[%emt 0:01:30]} g5 {[%emt 0:14:30]} 19. Bf1 {[%emt 0:02:30]} h6 {[%emt 0:03:30]} 20. Re1 {[%emt 0:02:30]} Qb4 {[%emt 0:05:03][%cal Ob7b5]} 21. Qb2 {[%emt 0:00:43]} Rc7 {[%emt 0:03:42]} 22. Rbd1 {[%emt 0:04:05]} Rbc8 {[%emt 0:00:45]} 23. Rd2 {[%emt 0:02:30]} Kg8 {[%emt 0:02:17]} 24. Na2 {[%emt 0:08:38]} Qb6 {[%emt 0:02:45]} 25. Nc3 {[%emt 0:00:09]} Qb4 $1 {[%emt 0:00:18]} 26. Na2 {[%emt 0:00:44]} Qb6 {[%emt 0:00:07] [#]} 27. Nc3 {[%emt 0:00:04] Weighted Error Value: White=0.14 (very precise) /Black=0.08 (flawless)} (27. g3 $1 $16) 1/2-1/2

[Event "FIDE WSTC-50-65 2022"]
[Site "Acqui Terme"]
[Date "2022.06.23"]
[Round "4.5"]
[White "David, Alberto"]
[Black "Horvath, Jozsef"]
[Result "1-0"]
[ECO "B11"]
[WhiteElo "2520"]
[BlackElo "2429"]
[Annotator "TA"]
[PlyCount "115"]
[EventDate "2022.06.20"]
[EventType "team-tourn"]
[EventCountry "ITA"]
[SourceTitle "playchess.com"]
[Source "ChessBase"]
[SourceQuality "1"]
[TimeControl "40/5400+30:1800+30"]

{[%evp 14,115,27,22,37,20,22,20,25,6,18,9,9,0,5,2,25,11,39,39,50,27,30,21,11,0,0,0,7,10,6,2,0,0,43,47,39,45,45,45,48,49,44,31,30,23,25,24,41,35,26,12,12,11,92,14,43,43,43,8,8,8,10,0,77,0,0,0,0,0,0,0,29995,77,225,0,2,0,109,115,222,215,216,125,121,83,90,20,29970,29971,29971,29972,29972,29971,29971,29972,29974,29969,29987,29988,29987,29988,29990,29990]} 1. e4 {[%emt 0:01:00]} c6 {[%emt 0:01:00]} 2. Nf3 {[%emt 0:00:30]} d5 {[%emt 0:00:30]} 3. Nc3 {[%emt 0:00:30]} Bg4 {[%emt 0:00:30]} 4. h3 {[%emt 0:00:30]} Bxf3 {[%emt 0:00:30]} 5. Qxf3 {[%emt 0:00:00]} e6 {[%emt 0:00:30]} 6. g3 {[%emt 0:01:00]} g6 {[%emt 0:10:30]} 7. Bg2 {[%emt 0:09:30]} Bg7 {[%emt 0:01:30]} 8. O-O {[%emt 0:00:30][%cal Od2d4]} Nd7 {[%emt 0:01:30] B11: Caro-Kann: Two Knights Variation.} 9. Qe2 {[%emt 0:02:30][%cal Re4d5]} Ne7 {[%emt 0:05:30]} 10. d3 {[%emt 0:02:30]} O-O {[%emt 0:02:30] The position is equal.} 11. Bg5 {[%emt 0:03:30]} Re8 {[%emt 0:06:30]} 12. Rae1 {[%emt 0:00:30] [#]} Qa5 $146 {[%emt 0:05:30]} ({Predecessor:} 12... d4 13. Nb1 Qa5 14. Bd2 Qa4 15. Rc1 c5 16. c4 dxc3 17. Bxc3 Nc6 18. Bxg7 Kxg7 {1-0 (60) Ponizil,C (2377)-Kuchynka,L (2310) Czech Republic 2012}) 13. Bd2 {[%emt 0:03:30][%cal Oc3d5]} Qa6 {[%emt 0:07:30]} 14. a3 {[%emt 0:03:30]} Rac8 {[%emt 0:11:30]} 15. Bc1 {[%emt 0:17:30]} dxe4 {[%emt 0:16:30]} 16. Nxe4 {[%emt 0:03:30] aiming for Nd6.} c5 {[%emt 0:00:30]} 17. g4 {[%emt 0:06:30]} Nf6 {[%emt 0:03:30]} 18. Nxf6+ {[%emt 0:28:30]} Bxf6 {[%emt 0:00:30]} 19. Qf3 {[%emt 0:00:02]} Bg7 {[%emt 0:00:30]} (19... Nd5 $2 20. c4 $18) 20. Qxb7 {[%emt 0:02:14]} Qxb7 {[%emt 0:00:00]} 21. Bxb7 {[%emt 0:00:05]} Rb8 {[%emt 0:00:00]} 22. Bf3 {[%emt 0:00:05] White wants to play b3.} Bxb2 {[%emt 0:00:30]} 23. Bf4 {[%emt 0:00:04] A strong pair of Bishops.} Rbd8 {[%emt 0:06:38]} 24. Rb1 {[%emt 0:00:36]} Bxa3 {[%emt 0:02:58][%cal Oc5c4]} 25. Ra1 {[%emt 0:02:17]} (25. Rb7 {looks sharper.} a5 26. Be5 Nd5 27. c3) 25... Bb2 {[%emt 0:06:10]} 26. Rxa7 {[%emt 0:00:06]} Nd5 {[%emt 0:02:14]} 27. Bxd5 {[%emt 0:08:29]} exd5 {[%emt 0:00:30]} 28. Rb1 {[%emt 0:00:03]} Bd4 {[%emt 0:00:35]} 29. Kf1 {[%emt 0:00:04] Inhibits Re2.} Ra8 {[%emt 0:03:16]} 30. Rbb7 {[%emt 0:01:24]} c4 {[%emt 0:03:33]} 31. Rxa8 {[%emt 0:00:52]} Rxa8 $14 {[%emt 0:00:30][%mdl 4096] Endgame KRB-KRB} 32. Rd7 {[%emt 0:02:02]} cxd3 {[%emt 0:00:30]} 33. cxd3 {[%emt 0:00:00]} f5 {[%emt 0:00:00]} (33... Ra1+ $11 34. Kg2 Ra2) 34. Kg2 {[%emt 0:00:00]} (34. gxf5 $16 Ra1+ 35. Kg2) 34... Ra2 {[%emt 0:00:00]} 35. Rxd5 {[%emt 0:00:00]} Bxf2 {[%emt 0:00:00][%cal Og6g5]} ({Not} 35... Rxf2+ 36. Kg3 Bb6 37. gxf5 $16) 36. Kf3 {[%emt 0:00:00]} fxg4+ {[%emt 0:00:00]} 37. hxg4 {[%emt 0:00:00]} Bb6 {[%emt 0:00:00] Inhibits Rd8+.} 38. Bh6 {[%emt 0:00:00]} Bc7 {[%emt 0:00:00]} (38... Rh2 $11 {remains equal.} 39. Bf4 Rf2+ 40. Kg3 Rf1) 39. g5 {[%emt 0:00:00]} (39. Rd7 $1 $16 {[%cal Rd7c7]} Bh2 40. d4) 39... Bb6 {[%emt 0:00:00]} 40. Rd6 {[%emt 0:00:00]} Bc5 {[%emt 0:00:00]} 41. Rc6 {[%emt 0:18:28]} Be7 {[%emt 0:19:59]} 42. Rc7 {[%emt 0:00:30]} Bf6 {[%emt 0:01:13][%mdl 8192]} 43. Rd7 $2 {[%emt 0:00:30]} (43. gxf6 {mates} Ra8 44. f7+ Kh8 45. Re7 Rd8 46. Re8+ Rxe8 47. fxe8=Q#) 43... Be5 {[%emt 0:00:35]} (43... Rh2 $16) 44. Re7 $2 {[%emt 0:00:30]} ({White should play} 44. d4 $18 Bh2 45. Rg7+ Kh8 46. Rd7) 44... Bc3 {[%emt 0:00:50]} 45. Rd7 {[%emt 0:02:10] Strongly threatening d4.} Ra4 {[%emt 0:10:04] Inhibits d4.} (45... Be5 $11) 46. Ke3 $1 $16 {[%emt 0:00:30]} Ra8 {[%emt 0:02:26]} (46... Rh4 $16 {is a better defense.}) 47. d4 $18 {[%emt 0:00:14]} Ba5 {[%emt 0:01:49] [#]} 48. Rg7+ {[%emt 0:05:56]} (48. Ke4 $1 $18) 48... Kh8 $16 {[%emt 0:00:11]} 49. Rb7 {[%emt 0:00:04] d5 is the strong threat.} Kg8 {[%emt 0:00:18]} 50. d5 {[%emt 0:03:04] White is more active.} (50. Kd3 $16) 50... Ra7 $2 {[%emt 0:00:27][%mdl 8192]} 51. Rxa7 {[%emt 0:00:06] White mates.} Bb6+ {[%emt 0:00:04]} 52. Ke4 {[%emt 0:00:03]} Bxa7 {[%emt 0:00:03] KB-KB} 53. d6 {[%emt 0:00:05][%cal Bd5d6,Bd6d7][%mdl 32]} Kf7 {[%emt 0:00:07]} 54. Kd5 {[%emt 0:00:07]} Be3 {[%emt 0:03:49]} 55. Kc6 {[%emt 0:01:01]} Ke8 {[%emt 0:01:06] [#]} 56. d7+ $1 {[%emt 0:00:09]} Kd8 {[%emt 0:00:30]} 57. Bf8 {[%emt 0:00:37]} Bxg5 {[%emt 0:00:22]} 58. Bd6 {[%emt 0:00:23] Weighted Error Value: White=0.31/Black=0.46} 1-0

[Event "FIDE WSTC-50-65 2022"]
[Site "Acqui Terme"]
[Date "2022.06.23"]
[Round "4.6"]
[White "Varga, Zoltan"]
[Black "Godena, Michele"]
[Result "1-0"]
[ECO "A21"]
[WhiteElo "2395"]
[BlackElo "2478"]
[Annotator "TA"]
[PlyCount "83"]
[EventDate "2022.06.20"]
[EventType "team-tourn"]
[EventCountry "ITA"]
[SourceTitle "playchess.com"]
[Source "ChessBase"]
[SourceQuality "1"]
[TimeControl "40/5400+30:1800+30"]

{[%evp 9,83,12,26,25,29,29,39,-20,-1,-6,-14,-20,-1,-39,-21,-35,-26,-12,11,13,0,18,59,31,25,0,81,-113,134,129,143,140,250,276,281,275,277,291,285,287,313,307,445,438,439,440,550,531,511,461,785,779,785,765,715,720,1008,627,736,695,732,732,1254,1086,1138,723,891,1055,1517,1562,1306,985,29987,29988,29989,316]} 1. c4 {[%emt 0:01:00]} e5 {[%emt 0:01:00]} 2. Nc3 {[%emt 0:00:00]} Bb4 {[%emt 0:00:30]} 3. Nd5 {[%emt 0:01:00]} Be7 {[%emt 0:03:30]} 4. Nf3 {[%emt 0:06:30]} d6 {[%emt 0:03:30]} 5. d4 {[%emt 0:00:30]} e4 {[%emt 0:11:30]} 6. Nd2 {[%emt 0:03:30] A21: English Opening: 1...e5 2 Nc3.} f5 {[%emt 0:00:30]} 7. e3 {[%emt 0:11:30]} Nf6 {[%emt 0:02:30]} 8. Nf4 {[%emt 0:04:30]} ({Better is} 8. Nxe7 $14 Qxe7 9. b4) 8... O-O {[%emt 0:05:30] [#]} 9. h4 $146 {[%emt 0:00:30]} ({Predecessor:} 9. b4 c5 10. Nb3 cxb4 11. a3 g5 12. Nh3 h6 13. axb4 d5 14. c5 Be6 15. Ng1 {1-0 (42) Kharlov,A (2633)-Supatashvili,K (2509) Batumi 2002}) 9... c6 {[%emt 0:23:30]} 10. b4 {[%emt 0:13:30]} Na6 {[%emt 0:13:30]} 11. Qb3 {[%emt 0:05:30]} (11. b5 $5 {[%cal Rb5a6]} Nc7 12. bxc6 $11) 11... Nc7 {[%emt 0:01:30]} 12. d5 {[%emt 0:00:30]} cxd5 {[%emt 0:04:30]} 13. cxd5 {[%emt 0:00:30]} Ng4 {[%emt 0:03:30]} 14. g3 {[%emt 0:00:30]} Bf6 {[%emt 0:00:00]} 15. Bb2 {[%emt 0:01:30]} a5 {[%emt 0:07:01]} 16. Bxf6 {[%emt 0:03:30]} (16. bxa5 {feels hotter.} Rxa5 17. Be2 Qe7 18. Rb1) 16... Nxf6 {[%emt 0:03:49]} 17. b5 {[%emt 0:01:30]} Kh8 {[%emt 0:09:01]} (17... a4 $11 18. Qc4 Bd7) 18. b6 $2 {[%emt 0:06:30] [#]} (18. a4 $16) 18... Na6 $2 {[%emt 0:02:20]} (18... Ncxd5 $1 $17 {[%mdl 512] Hoping for ...a4.} 19. Nxd5 a4) 19. Bxa6 $16 {[%emt 0:00:00] White is much more active. Black is now going downhill.} Rxa6 {[%emt 0:00:06]} 20. Nc4 {[%emt 0:00:00]} Nd7 {[%emt 0:02:08]} (20... Qe7 $16) 21. Ne6 $18 {[%emt 0:00:30] Pair of Knights!} ({Not} 21. Nxd6 $2 Qf6 22. O-O Qxd6 $19) 21... Qf6 {[%emt 0:00:59]} 22. O-O {[%emt 0:00:30]} Nc5 {[%emt 0:00:11]} 23. Nxc5 {[%emt 0:00:30]} dxc5 {[%emt 0:00:01]} 24. Qb5 {[%emt 0:00:00][%csl LRa5,LRc5]} f4 {[%emt 0:01:06]} 25. exf4 {[%emt 0:01:00]} ({Weaker is} 25. Qxc5 Bh3 26. exf4 Rc8 $16) 25... Bh3 {[%emt 0:00:42]} (25... e3 {was called for.} 26. Nxe3 Qxb6 27. Qxb6 Rxb6) 26. Rfe1 {[%emt 0:00:00]} Raa8 {[%emt 0:00:33]} 27. Rac1 {[%emt 0:02:00][%cal Ba1c1,Bc1c4,Bc4e4,Be4e2,Be2e3][%mdl 32]} Bg4 {[%emt 0:00:31]} 28. Qxc5 {[%emt 0:09:30]} Rac8 {[%emt 0:00:20]} 29. Qd6 {[%emt 0:00:30]} Qd4 {[%emt 0:00:35]} (29... h5 $142 30. Qe5 Rc5) 30. Ne5 {[%emt 0:02:30]} Bh3 {[%emt 0:00:30] [#]} 31. Rc4 $1 {[%emt 0:08:08][%mdl 512]} Qd2 {[%emt 0:00:23]} 32. Rcxe4 {[%emt 0:00:03]} Qxa2 {[%emt 0:00:39]} 33. R4e2 {[%emt 0:00:12]} Qb3 {[%emt 0:00:24]} 34. Re3 {[%emt 0:00:17]} Qa4 {[%emt 0:00:36]} 35. g4 {[%emt 0:04:23]} Rxf4 {[%emt 0:00:24]} 36. Rxh3 {[%emt 0:00:49]} Rcf8 {[%emt 0:00:22]} 37. Nd7 {[%emt 0:07:36]} Rxg4+ {[%emt 0:00:47]} 38. Rg3 {[%emt 0:00:28]} Rxg3+ {[%emt 0:00:28]} 39. fxg3 {[%emt 0:00:05][%cal Rd6f8]} Qd4+ {[%emt 0:00:24]} 40. Kh1 {[%emt 0:00:00][%cal Rd6f8]} Ra8 {[%emt 0:00:00]} 41. Nb8 {[%emt 0:04:29][%cal Rd6f8]} h6 {[%emt 0:02:40]} 42. Qf8+ {[%emt 0:00:30] Weighted Error Value: White=0.39/Black=0.43} 1-0